[Event "Czech Youth U14 Boys 2024"]
[Site "Kouty nad Desnou"]
[Date "2024.03.15"]
[Round "8.7"]
[White "Mydlar, Matej"]
[Black "Roubal, Matyas"]
[Result "1/2-1/2"]
[ECO "B57"]
[WhiteElo "1819"]
[BlackElo "1849"]
[Annotator "NA COMBH"]
[PlyCount "118"]
[EventDate "2024.03.10"]
[EventType "swiss"]
[EventCountry "CZE"]
[SourceTitle "playchess.com"]
[Source "ChessBase"]
[SourceQuality "1"]
[TimeControl "40/5400+30:1800+30"]

1. e4 {[%emt 0:00:31]} c5 {[%emt 0:00:03]} 2. Nf3 {[%emt 0:00:08]} Nc6 {[%emt 0:00:08]} 3. d4 {[%emt 0:00:09]} cxd4 {[%emt 0:00:04]} 4. Nxd4 {[%emt 0:00:05]} Nf6 {[%emt 0:00:09]} 5. Nc3 {[%emt 0:00:12]} d6 {[%emt 0:00:11]} 6. Bc4 {[%emt 0:00:28]} Bd7 {[%emt 0:01:47]} 7. O-O {[%emt 0:05:29]} g6 {[%emt 0:04:26]} 8. h3 {[%emt 0:02:32]} Bg7 {[%emt 0:04:11]} 9. Be3 {[%emt 0:00:15]} Rc8 {[%emt 0:09:52]} 10. Bb3 {[%emt 0:01:11]} Na5 {[%emt 0:03:35]} 11. Qd3 {[%emt 0:02:31]} Nxb3 {[%emt 0:03:40]} 12. axb3 {[%emt 0:01:40]} a6 {[%emt 0:01:52]} 13. f4 {[%emt 0:08:49]} O-O {[%emt 0:01:00]} 14. Rfe1 {[%emt 0:03:37]} Qc7 {[%emt 0:03:26]} 15. Rad1 {[%emt 0:03:29]} Rfd8 {[%emt 0:04:33]} 16. Bf2 {[%emt 0:02:22]} e5 {[%emt 0:02:25]} 17. Nf3 {[%emt 0:17:44]} Bc6 {[%emt 0:03:25]} 18. fxe5 {[%emt 0:06:08]} dxe5 {[%emt 0:00:15]} 19. Qe2 {[%emt 0:00:30]} b5 {[%emt 0:16:31]} 20. b4 {[%emt 0:23:42]} a5 {[%emt 0:04:00]} 21. bxa5 {[%emt 0:03:10]} b4 {[%emt 0:02:39]} 22. Bb6 {[%emt 0:01:22]} Qe7 {[%emt 0:08:38]} 23. Bxd8 {[%emt 0:03:13]} Rxd8 {[%emt 0:00:06]} 24. Nd5 {[%emt 0:02:27]} Nxd5 {[%emt 0:03:44]} 25. exd5 {[%emt 0:00:53]} Bxd5 {[%emt 0:01:36]} 26. Nxe5 {[%emt 0:06:27]} Qc5+ {[%emt 0:00:21]} 27. Qf2 {[%emt 0:01:36]} Qxa5 {[%emt 0:01:00]} 28. c4 {[%emt 0:00:34]} bxc3 {[%emt 0:00:36]} 29. bxc3 {[%emt 0:00:09]} Qc7 {[%emt 0:01:26]} 30. c4 {[%emt 0:02:39]} Be6 {[%emt 0:00:18]} 31. Rxd8+ {[%emt 0:00:55]} Qxd8 {[%emt 0:00:02]} 32. Qf4 {[%emt 0:00:38]} Qc7 {[%emt 0:01:01]} 33. Kh1 {[%emt 0:00:32]} Bxe5 {[%emt 0:00:25]} 34. Rxe5 {[%emt 0:00:25]} Qxc4 {[%emt 0:00:05]} 35. Re4 {[%emt 0:00:18]} Qc3 {[%emt 0:00:48]} 36. Kh2 {[%emt 0:00:27]} Kg7 {[%emt 0:01:49]} 37. Rd4 {[%emt 0:00:29]} Qa5 {[%emt 0:02:38]} 38. Rb4 {[%emt 0:00:32]} Qf5 {[%emt 0:01:37]} 39. Qd4+ {[%emt 0:00:51]} Qf6 {[%emt 0:00:08]} 40. Qe4 {[%emt 0:00:37]} Qf5 {[%emt 0:01:17]} 41. Qxf5 {[%emt 0:03:12]} Bxf5 {[%emt 0:00:13]} 42. g4 {[%emt 0:00:05]} Be6 {[%emt 0:00:48]} 43. Kg3 {[%emt 0:00:09]} g5 {[%emt 0:02:23]} 44. Rb5 {[%emt 0:03:48]} Kg6 {[%emt 0:00:44]} 45. h4 {[%emt 0:01:38]} gxh4+ {[%emt 0:00:09]} 46. Kxh4 {[%emt 0:00:06]} h6 {[%emt 0:01:11]} 47. Rb6 {[%emt 0:00:25]} Kg7 {[%emt 0:00:21]} 48. Kh5 {[%emt 0:00:27]} Kh7 {[%emt 0:00:15]} 49. Kh4 {[%emt 0:01:43]} Kg6 {[%emt 0:00:11]} 50. Ra6 {[%emt 0:00:11]} Kg7 {[%emt 0:00:32]} 51. Kg3 {[%emt 0:00:13]} Kg6 {[%emt 0:00:18]} 52. Kh4 {[%emt 0:09:08]} Kg7 {[%emt 0:00:06]} 53. Kh5 {[%emt 0:02:22]} Kh7 {[%emt 0:00:05]} 54. Ra5 {[%emt 0:00:04]} Kg7 {[%emt 0:00:29]} 55. Re5 {[%emt 0:00:19]} Kf6 {[%emt 0:01:16]} 56. Re2 {[%emt 0:02:49]} Kg7 {[%emt 0:00:26]} 57. Rf2 {[%emt 0:01:12]} Bd7 {[%emt 0:00:47]} 58. Rb2 {[%emt 0:05:03]} Be6 {[%emt 0:00:08]} 59. Rb7 {[%emt 0:00:12]} Kh7 {[%emt 0:00:25]} 1/2-1/2

[Event "Czech Youth U14 Boys 2024"]
[Site "Kouty nad Desnou"]
[Date "2024.03.15"]
[Round "8.8"]
[White "Svadlenka, Dominik"]
[Black "Jezek, Jakub"]
[Result "0-1"]
[ECO "A75"]
[WhiteElo "1888"]
[BlackElo "1854"]
[Annotator "NA COMBH"]
[PlyCount "88"]
[EventDate "2024.03.10"]
[EventType "swiss"]
[EventCountry "CZE"]
[SourceTitle "playchess.com"]
[Source "ChessBase"]
[SourceQuality "1"]
[TimeControl "40/5400+30:1800+30"]

1. d4 {[%emt 0:00:04]} Nf6 {[%emt 0:00:07]} 2. c4 {[%emt 0:00:04]} g6 {[%emt 0:00:00]} 3. Nc3 {[%emt 0:00:04]} Bg7 {[%emt 0:00:00]} 4. e4 {[%emt 0:00:05]} d6 5. Be2 {[%emt 0:00:06]} O-O {[%emt 0:00:30]} 6. Nf3 {[%emt 0:00:00]} c5 {[%emt 0:00:00]} 7. d5 {[%emt 0:00:00]} e6 8. O-O exd5 {[%emt 0:00:45]} 9. cxd5 {[%emt 0:00:35]} a6 {[%emt 0:00:15]} 10. a4 {[%emt 0:00:13]} Bg4 {[%emt 0:01:03]} 11. Nd2 {[%emt 0:00:39]} Bxe2 {[%emt 0:00:05]} 12. Qxe2 {[%emt 0:00:05]} Nbd7 {[%emt 0:00:50]} 13. f4 {[%emt 0:03:58]} Ne8 {[%emt 0:06:41]} 14. Nc4 {[%emt 0:03:44]} Qe7 {[%emt 0:02:16]} 15. Qf3 {[%emt 0:02:30]} f5 {[%emt 0:01:14]} 16. Re1 {[%emt 0:05:37]} fxe4 {[%emt 0:04:26]} 17. Rxe4 {[%emt 0:11:08]} Qf6 {[%emt 0:02:57]} 18. Qg4 {[%emt 0:08:52]} Rd8 {[%emt 0:08:36]} 19. Na5 {[%emt 0:33:13]} Qf7 {[%emt 0:08:33]} 20. Qe2 {[%emt 0:01:50]} Bxc3 {[%emt 0:03:47]} 21. bxc3 {[%emt 0:00:15]} Qxd5 {[%emt 0:00:17]} 22. c4 {[%emt 0:09:14]} Qh5 {[%emt 0:07:57]} 23. Qxh5 {[%emt 0:09:17]} gxh5 {[%emt 0:01:22]} 24. Re6 {[%emt 0:02:34]} Rf6 {[%emt 0:02:35]} 25. Nxb7 {[%emt 0:01:04]} Rxe6 {[%emt 0:01:00]} 26. Nxd8 {[%emt 0:00:05]} Re4 {[%emt 0:00:57]} 27. Nc6 {[%emt 0:01:14]} Rxc4 {[%emt 0:01:28]} 28. a5 {[%emt 0:03:28]} Nef6 {[%emt 0:07:03]} 29. Bd2 {[%emt 0:01:13]} d5 {[%emt 0:05:49]} 30. Rb1 {[%emt 0:00:59]} Rc2 {[%emt 0:02:03]} 31. Be1 {[%emt 0:00:10]} d4 {[%emt 0:01:34]} 32. Kf1 {[%emt 0:03:11]} Ng4 {[%emt 0:01:45]} 33. Ne7+ {[%emt 0:00:37]} Kf7 {[%emt 0:01:06]} 34. Nd5 {[%emt 0:00:05]} Ke6 {[%emt 0:10:35]} 35. Nc7+ {[%emt 0:00:15]} Kf5 {[%emt 0:00:08]} 36. Nxa6 {[%emt 0:01:05]} Ne3+ {[%emt 0:00:12]} 37. Kg1 {[%emt 0:00:05]} Rxg2+ {[%emt 0:00:08]} 38. Kh1 {[%emt 0:00:03]} d3 {[%emt 0:03:28]} 39. Nc7 {[%emt 0:01:32]} d2 {[%emt 0:01:27]} 40. Bxd2 {[%emt 0:00:04]} Rxd2 {[%emt 0:00:07]} 41. a6 {[%emt 0:30:08]} Ra2 {[%emt 0:33:33]} 42. h4 {[%emt 0:00:57]} c4 {[%emt 0:03:07]} 43. Rc1 {[%emt 0:00:00]} Nc5 {[%emt 0:00:00]} 44. Re1 {[%emt 0:00:00]} Kxf4 {[%emt 0:00:00]} 0-1

[Event "Czech Youth U14 Boys 2024"]
[Site "Kouty nad Desnou"]
[Date "2024.03.15"]
[Round "8.9"]
[White "Macosek, Alex"]
[Black "Pogorelskiy, Boris"]
[Result "1-0"]
[ECO "D00"]
[WhiteElo "1781"]
[BlackElo "1747"]
[Annotator "NA COMBH"]
[PlyCount "85"]
[EventDate "2024.03.10"]
[EventType "swiss"]
[EventCountry "CZE"]
[SourceTitle "playchess.com"]
[Source "ChessBase"]
[SourceQuality "1"]
[TimeControl "40/5400+30:1800+30"]

1. d4 {[%emt 0:01:27]} d5 {[%emt 0:00:33]} 2. Bf4 {[%emt 0:00:17]} c5 {[%emt 0:00:25]} 3. e3 {[%emt 0:00:21]} Nc6 {[%emt 0:00:31]} 4. c3 {[%emt 0:00:09]} Qb6 {[%emt 0:00:27]} 5. Qb3 {[%emt 0:00:57]} c4 {[%emt 0:00:10]} 6. Qc2 {[%emt 0:00:17]} Bf5 {[%emt 0:00:10]} 7. Qc1 {[%emt 0:01:43]} Nf6 {[%emt 0:00:06]} 8. Nd2 {[%emt 0:00:47]} e6 {[%emt 0:00:28]} 9. Ngf3 {[%emt 0:01:33]} h6 {[%emt 0:00:34]} 10. Be2 {[%emt 0:01:56]} Be7 {[%emt 0:00:06]} 11. O-O {[%emt 0:00:22]} O-O {[%emt 0:00:02]} 12. Bd1 {[%emt 0:01:52]} Rac8 {[%emt 0:01:56]} 13. Bc2 {[%emt 0:00:38]} Bxc2 {[%emt 0:03:42]} 14. Qxc2 {[%emt 0:00:16]} Nh5 {[%emt 0:08:39]} 15. Bg3 {[%emt 0:01:16]} Nxg3 {[%emt 0:00:43]} 16. hxg3 {[%emt 0:01:17]} Qc7 {[%emt 0:00:16]} 17. e4 {[%emt 0:00:45]} b5 {[%emt 0:05:25]} 18. a3 {[%emt 0:02:25]} a5 {[%emt 0:00:20]} 19. exd5 {[%emt 0:00:57]} exd5 {[%emt 0:00:08]} 20. Qf5 {[%emt 0:01:43]} Rfd8 {[%emt 0:01:06]} 21. Rfe1 {[%emt 0:01:01]} b4 {[%emt 0:01:37]} 22. axb4 {[%emt 0:00:39]} axb4 {[%emt 0:00:04]} 23. Ne5 {[%emt 0:00:36]} Nxe5 {[%emt 0:02:39]} 24. Rxe5 {[%emt 0:03:24]} bxc3 {[%emt 0:01:11]} 25. bxc3 {[%emt 0:00:43]} Qb7 {[%emt 0:02:41]} 26. Rb1 {[%emt 0:05:02]} Qd7 {[%emt 0:00:35]} 27. Qxd7 {[%emt 0:04:19]} Rxd7 {[%emt 0:00:06]} 28. Rb5 {[%emt 0:00:22]} Rcd8 {[%emt 0:00:06]} 29. Nf1 {[%emt 0:01:49]} f6 {[%emt 0:00:35]} 30. Re6 {[%emt 0:01:19]} Kf7 {[%emt 0:02:51]} 31. Ra6 {[%emt 0:00:20]} g6 {[%emt 0:00:59]} 32. Ne3 {[%emt 0:02:18]} f5 {[%emt 0:01:23]} 33. Rbb6 {[%emt 0:01:31]} Rg8 {[%emt 0:00:49]} 34. Nc2 {[%emt 0:01:26]} h5 {[%emt 0:02:51]} 35. Ne1 {[%emt 0:00:25]} Rgd8 {[%emt 0:03:35]} 36. Rxg6 {[%emt 0:03:07]} Rd6 {[%emt 0:00:01]} 37. Rgxd6 {[%emt 0:01:12]} Rxd6 {[%emt 0:00:04]} 38. Rxd6 {[%emt 0:01:31]} Bxd6 {[%emt 0:00:04]} 39. Kf1 {[%emt 0:00:39]} Ba3 {[%emt 0:00:13]} 40. Ke2 {[%emt 0:00:21]} Kf6 {[%emt 0:00:08]} 41. Kd2 {[%emt 0:31:15]} Kg5 {[%emt 0:30:32]} 42. Nc2 {[%emt 0:00:16]} Bb2 {[%emt 0:00:06]} 43. Ne3 {[%emt 0:00:06]} 1-0

[Event "Czech Youth U14 Boys 2024"]
[Site "Kouty nad Desnou"]
[Date "2024.03.15"]
[Round "8.10"]
[White "Srba, Daniel"]
[Black "Gregor, Alexandr"]
[Result "1-0"]
[ECO "B34"]
[WhiteElo "1742"]
[BlackElo "1777"]
[Annotator "NA COMBH"]
[PlyCount "57"]
[EventDate "2024.03.10"]
[EventType "swiss"]
[EventCountry "CZE"]
[SourceTitle "playchess.com"]
[Source "ChessBase"]
[SourceQuality "1"]
[TimeControl "40/5400+30:1800+30"]

1. e4 {[%emt 0:00:01]} c5 {[%emt 0:00:04]} 2. Nf3 {[%emt 0:00:08]} Nc6 {[%emt 0:00:03]} 3. d4 {[%emt 0:00:05]} cxd4 {[%emt 0:00:03]} 4. Nxd4 {[%emt 0:00:05]} g6 {[%emt 0:00:02]} 5. Nc3 {[%emt 0:00:06]} Bg7 {[%emt 0:00:02]} 6. Be3 {[%emt 0:00:35]} Nf6 {[%emt 0:00:09]} 7. f3 {[%emt 0:00:31]} O-O {[%emt 0:00:08]} 8. Qd2 {[%emt 0:00:22]} d5 {[%emt 0:01:10]} 9. Nxc6 {[%emt 0:03:04]} bxc6 {[%emt 0:00:04]} 10. e5 {[%emt 0:00:51]} Nd7 {[%emt 0:01:32]} 11. f4 {[%emt 0:00:51]} e6 {[%emt 0:00:40]} 12. O-O-O {[%emt 0:01:28]} c5 {[%emt 0:14:02]} 13. Bb5 {[%emt 0:01:41]} d4 {[%emt 0:04:21]} 14. Bxd4 {[%emt 0:00:34]} cxd4 {[%emt 0:00:07]} 15. Qxd4 {[%emt 0:00:07]} Qc7 {[%emt 0:01:03]} 16. Bxd7 {[%emt 0:04:42]} Rd8 {[%emt 0:00:04]} 17. Nb5 {[%emt 0:03:17]} Qxd7 {[%emt 0:00:11]} 18. Qb4 {[%emt 0:00:16]} Rb8 {[%emt 0:08:40]} 19. Rxd7 {[%emt 0:00:55]} Bxd7 {[%emt 0:00:12]} 20. Rd1 {[%emt 0:01:41]} a6 {[%emt 0:02:22]} 21. a4 {[%emt 0:08:11]} axb5 {[%emt 0:03:27]} 22. axb5 {[%emt 0:00:06]} Ra8 {[%emt 0:05:30]} 23. Kb1 {[%emt 0:04:47]} Bf8 {[%emt 0:01:54]} 24. Qb3 {[%emt 0:00:20]} Be7 {[%emt 0:06:27]} 25. b6 {[%emt 0:00:19]} Kf8 {[%emt 0:01:18]} 26. b7 {[%emt 0:00:11]} Rab8 {[%emt 0:00:06]} 27. Qb6 {[%emt 0:00:44]} Ke8 {[%emt 0:01:29]} 28. Qc7 h5 {[%emt 0:06:30]} 29. Rxd7 {[%emt 0:01:32]} 1-0

[Event "Czech Youth U14 Boys 2024"]
[Site "Kouty nad Desnou"]
[Date "2024.03.15"]
[Round "8.11"]
[White "Stary, Vojtech"]
[Black "Trcalek, Filip"]
[Result "1-0"]
[ECO "C47"]
[WhiteElo "1950"]
[BlackElo "1615"]
[Annotator "RC"]
[PlyCount "179"]
[EventDate "2024.03.10"]
[EventType "swiss"]
[EventCountry "CZE"]
[SourceTitle "playchess.com"]
[Source "ChessBase"]
[SourceQuality "1"]
[TimeControl "40/5400+30:1800+30"]

1. e4 {[%emt 0:00:02]} e5 {[%emt 0:00:12]} 2. Nf3 {[%emt 0:00:05]} Nc6 {[%emt 0:00:35]} 3. Nc3 {[%emt 0:00:06]} Nf6 {[%emt 0:00:42]} 4. d4 {[%emt 0:00:11]} exd4 {[%emt 0:00:55]} 5. Nxd4 {[%emt 0:00:07]} Bb4 {[%emt 0:00:51]} 6. Nxc6 {[%emt 0:00:23]} bxc6 {[%emt 0:00:59]} 7. Bd3 {[%emt 0:00:06]} d5 {[%emt 0:01:26]} 8. exd5 {[%emt 0:00:09]} cxd5 {[%emt 0:00:18]} 9. O-O {[%emt 0:00:10]} O-O {[%emt 0:00:40]} 10. Bg5 {[%emt 0:00:42]} c6 {[%emt 0:01:16]} 11. Qf3 {[%emt 0:01:36]} Be7 {[%emt 0:03:44]} 12. h3 {[%emt 0:01:18]} Be6 {[%emt 0:02:15]} 13. Rfe1 {[%emt 0:03:46]} Rb8 {[%emt 0:04:49]} 14. b3 {[%emt 0:17:23]} Bb4 {[%emt 0:06:06]} 15. Bd2 {[%emt 0:01:33]} c5 {[%emt 0:11:20]} 16. Nb1 {[%emt 0:04:50]} c4 {[%emt 0:13:27]} 17. Bxb4 {[%emt 0:02:05]} Rxb4 {[%emt 0:01:09]} 18. c3 {[%emt 0:06:55]} Rb6 {[%emt 0:10:50]} 19. Bc2 {[%emt 0:05:41]} Qc7 {[%emt 0:09:31]} 20. Nd2 {[%emt 0:07:31]} Rd8 {[%emt 0:05:00]} 21. Rad1 {[%emt 0:05:28]} Rbd6 {[%emt 0:05:02]} 22. bxc4 {[%emt 0:02:40]} dxc4 {[%emt 0:01:51]} 23. Ne4 {[%emt 0:01:50]} Nxe4 {[%emt 0:04:35]} 24. Qxe4 {[%emt 0:03:43]} g6 {[%emt 0:02:21]} 25. Rxd6 {[%emt 0:01:18]} Rxd6 {[%emt 0:01:39]} 26. Rd1 {[%emt 0:01:01]} Rxd1+ {[%emt 0:00:49]} 27. Bxd1 {[%emt 0:00:01]} Qa5 {[%emt 0:00:29]} 28. Qc2 {[%emt 0:02:10]} Qa3 {[%emt 0:01:07]} 29. Bg4 {[%emt 0:03:11]} Bxg4 {[%emt 0:02:14]} 30. hxg4 {[%emt 0:00:02]} Qe7 {[%emt 0:01:12]} 31. Qd2 {[%emt 0:00:55]} Qc5 {[%emt 0:01:28]} 32. Kf1 {[%emt 0:01:36]} Kf8 {[%emt 0:01:36]} 33. g5 {[%emt 0:12:14]} Qc7 {[%emt 0:01:21]} 34. Qd4 {[%emt 0:00:49]} Ke7 {[%emt 0:02:11]} 35. Qf6+ {[%emt 0:01:28]} Ke8 {[%emt 0:00:49]} 36. Ke2 {[%emt 0:03:01]} Qc5 {[%emt 0:01:38]} 37. f4 {[%emt 0:01:54]} Qa3 {[%emt 0:01:58]} 38. Qc6+ {[%emt 0:00:17]} Kf8 {[%emt 0:00:13]} 39. Qxc4 {[%emt 0:00:24]} Qb2+ {[%emt 0:00:14]} 40. Kf3 {[%emt 0:00:22]} Qb7+ {[%emt 0:00:31]} 41. Kg3 {[%emt 0:31:45]} Kg8 {[%emt 0:30:39]} 42. Qd4 {[%emt 0:02:56]} Qc7 {[%emt 0:00:00]} 43. c4 {[%emt 0:00:00]} Qe7 {[%emt 0:00:00]} 44. c5 {[%emt 0:00:00]} Qe1+ {[%emt 0:00:00]} 45. Qf2 {[%emt 0:00:00]} Qc3+ {[%emt 0:00:00]} 46. Kh2 {[%emt 0:00:00]} Kf8 {[%emt 0:00:00]} 47. c6 {[%emt 0:00:00]} Qxc6 {[%emt 0:00:00]} 48. Qxa7 {[%emt 0:00:00]} Qd6 {[%emt 0:00:00]} 49. Qe3 {[%emt 0:00:00]} Qa6 {[%emt 0:00:00]} 50. a3 {[%emt 0:00:00]} Qd6 {[%emt 0:00:00]} 51. Qc1 {[%emt 0:00:00]} Qb6 {[%emt 0:00:00]} 52. Qc8+ {[%emt 0:00:00]} Kg7 {[%emt 0:00:00]} 53. Qc3+ {[%emt 0:00:00]} Kg8 {[%emt 0:00:00]} 54. Qb4 {[%emt 0:00:00]} Qc7 {[%emt 0:00:00]} 55. a4 {[%emt 0:00:00]} Qa7 {[%emt 0:00:00]} 56. a5 {[%emt 0:00:00]} Qf2 {[%emt 0:00:00]} 57. a6 {[%emt 0:00:00]} Kg7 {[%emt 0:00:00]} 58. Qc3+ {[%emt 0:07:26]} Kg8 {[%emt 0:00:00]} 59. Qg3 {[%emt 0:02:36]} Qa7 {[%emt 0:00:21]} 60. Qd3 {[%emt 0:00:13]} Qf2 {[%emt 0:01:27]} 61. Qe4 {[%emt 0:00:38]} Qa7 {[%emt 0:00:43]} 62. Qe8+ {[%emt 0:01:00]} Kg7 {[%emt 0:00:21]} 63. Qe5+ {[%emt 0:00:03]} Kg8 {[%emt 0:00:23]} 64. Qe2 {[%emt 0:00:13]} Kg7 {[%emt 0:00:55]} 65. Kg3 {[%emt 0:02:03]} Kg8 {[%emt 0:00:56]} 66. Kf3 {[%emt 0:00:42]} Qa8+ {[%emt 0:00:30]} 67. Kf2 {[%emt 0:00:45]} Qb8 {[%emt 0:01:10]} 68. Kg3 {[%emt 0:00:47]} Qa7 {[%emt 0:00:11]} 69. Qe8+ {[%emt 0:01:25]} Kg7 {[%emt 0:00:08]} 70. Qe5+ {[%emt 0:00:05]} Kg8 {[%emt 0:00:25]} 71. Qd6 {[%emt 0:00:19]} Qe3+ {[%emt 0:00:28]} 72. Kh2 {[%emt 0:00:05]} Qf2 {[%emt 0:00:26]} 73. Qb4 {[%emt 0:01:14]} Qa7 {[%emt 0:00:35]} 74. Qa3 {[%emt 0:00:40]} Kg7 {[%emt 0:00:41]} 75. Kg3 {[%emt 0:00:17]} Kg8 {[%emt 0:00:30]} 76. Kf3 {[%emt 0:00:28]} Qa8+ {[%emt 0:00:24]} 77. Kf2 {[%emt 0:00:04]} Qa7+ {[%emt 0:00:20]} 78. Kf1 {[%emt 0:00:07]} Qd4 {[%emt 0:04:18]} 79. a7 {[%emt 0:01:06]} Qxf4+ {[%emt 0:00:31]} 80. Kg1 {[%emt 0:01:12]} Qd4+ {[%emt 0:00:17]} 81. Kh2 {[%emt 0:00:14]} Qh4+ {[%emt 0:00:26]} 82. Qh3 {[%emt 0:00:13]} Qf4+ {[%emt 0:02:30]} 83. Qg3 {[%emt 0:00:07]} Qe4 {[%emt 0:00:20]} 84. Qb8+ {[%emt 0:00:47]} Kg7 {[%emt 0:00:11]} 85. Qb2+ {[%emt 0:02:08]} Kg8 {[%emt 0:00:19]} 86. Qa1 {[%emt 0:00:38]} Qa8 {[%emt 0:00:35]} 87. Qd4 {[%emt 0:00:11]} Qc8 {[%emt 0:01:15]} 88. Qb6 {[%emt 0:00:24]} Kg7 {[%emt 0:01:56]} 89. Qb2+ {[%emt 0:00:41]} f6 {[%emt 0:00:22]} 90. Qb8 {[%emt 0:00:20]} 1-0

[Event "Czech Youth U14 Boys 2024"]
[Site "Kouty nad Desnou"]
[Date "2024.03.15"]
[Round "8.12"]
[White "Lorenc, Matej"]
[Black "Migalko, Dmitriy"]
[Result "1/2-1/2"]
[ECO "D43"]
[WhiteElo "1637"]
[BlackElo "1896"]
[Annotator "NA COMBH"]
[PlyCount "126"]
[EventDate "2024.03.10"]
[EventType "swiss"]
[EventCountry "CZE"]
[SourceTitle "playchess.com"]
[Source "ChessBase"]
[SourceQuality "1"]
[TimeControl "40/5400+30:1800+30"]

1. d4 {[%emt 0:00:02]} d5 {[%emt 0:00:12]} 2. c4 {[%emt 0:00:08]} e6 {[%emt 0:00:15]} 3. Nc3 {[%emt 0:00:06]} Nf6 {[%emt 0:00:22]} 4. Nf3 {[%emt 0:00:10]} c6 {[%emt 0:00:13]} 5. Bg5 {[%emt 0:00:54]} Be7 {[%emt 0:00:39]} 6. e3 O-O 7. Bd3 {[%emt 0:02:20]} Nbd7 {[%emt 0:01:06]} 8. O-O {[%emt 0:01:23]} h6 {[%emt 0:01:19]} 9. Bh4 Re8 10. cxd5 {[%emt 0:05:07]} exd5 {[%emt 0:02:46]} 11. Rc1 {[%emt 0:01:50]} Ne4 {[%emt 0:05:21]} 12. Bxe7 {[%emt 0:00:25]} Qxe7 {[%emt 0:00:26]} 13. Nd2 {[%emt 0:04:52]} Ndf6 {[%emt 0:03:51]} 14. Ndxe4 {[%emt 0:00:17]} dxe4 {[%emt 0:00:51]} 15. Bc4 {[%emt 0:01:03]} Bf5 {[%emt 0:08:14]} 16. Ne2 {[%emt 0:02:12]} g5 {[%emt 0:07:08]} 17. Ng3 {[%emt 0:03:15]} Be6 {[%emt 0:08:15]} 18. Qb3 {[%emt 0:02:39]} Bxc4 {[%emt 0:05:00]} 19. Qxc4 {[%emt 0:00:17]} Nd5 {[%emt 0:01:39]} 20. Qe2 {[%emt 0:01:59]} Qe6 {[%emt 0:03:49]} 21. Qh5 {[%emt 0:04:32]} Kg7 {[%emt 0:02:21]} 22. Qh3 {[%emt 0:02:18]} Qxh3 {[%emt 0:01:16]} 23. gxh3 {[%emt 0:00:14]} Kg6 {[%emt 0:02:11]} 24. a3 {[%emt 0:04:43]} f5 {[%emt 0:02:25]} 25. Rfe1 {[%emt 0:01:23]} Re7 {[%emt 0:06:46]} 26. Ne2 {[%emt 0:02:11]} Rae8 {[%emt 0:06:17]} 27. Nc3 {[%emt 0:00:10]} Nb6 {[%emt 0:03:05]} 28. b3 {[%emt 0:02:21]} f4 {[%emt 0:03:57]} 29. Kg2 {[%emt 0:00:41]} f3+ {[%emt 0:01:11]} 30. Kh1 {[%emt 0:03:59]} h5 {[%emt 0:05:11]} 31. Rg1 {[%emt 0:00:55]} Rd8 {[%emt 0:05:37]} 32. h4 {[%emt 0:00:23]} g4 {[%emt 0:00:17]} 33. a4 {[%emt 0:01:09]} Nc8 {[%emt 0:02:37]} 34. Rgd1 {[%emt 0:01:41]} Nd6 {[%emt 0:03:36]} 35. h3 {[%emt 0:00:33]} g3 {[%emt 0:00:54]} 36. Rg1 {[%emt 0:00:06]} Nf5 {[%emt 0:01:35]} 37. Nd1 {[%emt 0:00:30]} g2+ {[%emt 0:01:44]} 38. Kh2 {[%emt 0:00:07]} Nxh4 {[%emt 0:00:41]} 39. Nb2 {[%emt 0:00:39]} Nf5 {[%emt 0:01:24]} 40. Nc4 {[%emt 0:00:20]} Nh6 {[%emt 0:01:20]} 41. Ne5+ {[%emt 0:30:35]} Kf6 {[%emt 0:16:11]} 42. Rc5 {[%emt 0:00:00]} Nf5 {[%emt 0:00:55]} 43. Rgc1 {[%emt 0:00:00]} Rd5 {[%emt 0:03:25]} 44. Rxd5 {[%emt 0:00:00]} cxd5 {[%emt 0:00:01]} 45. Rc8 {[%emt 0:00:00]} b6 {[%emt 0:02:09]} 46. Rg8 {[%emt 0:00:00]} Ng7 {[%emt 0:02:31]} 47. Rc8 {[%emt 0:00:00]} Ne8 {[%emt 0:03:35]} 48. Rc6+ {[%emt 0:00:00]} Kg7 {[%emt 0:00:56]} 49. Rg6+ {[%emt 0:00:00]} Kh7 {[%emt 0:00:43]} 50. Rc6 {[%emt 0:00:00]} Rg7 {[%emt 0:00:31]} 51. Kg1 {[%emt 0:00:00]} Rc7 {[%emt 0:00:15]} 52. b4 {[%emt 0:00:00]} Rxc6 {[%emt 0:00:41]} 53. Nxc6 {[%emt 0:00:00]} a6 {[%emt 0:00:06]} 54. Ne5 {[%emt 0:00:00]} Nd6 {[%emt 0:01:13]} 55. Nd7 {[%emt 0:00:00]} Nc4 {[%emt 0:01:22]} 56. Nf6+ {[%emt 0:00:00]} Kg6 {[%emt 0:00:32]} 57. Nxd5 {[%emt 0:00:00]} Kg5 {[%emt 0:01:01]} 58. Nc3 {[%emt 0:00:00]} Kf5 {[%emt 0:00:27]} 59. Nd5 {[%emt 0:00:00]} b5 {[%emt 0:00:52]} 60. a5 {[%emt 0:00:00]} Na3 {[%emt 0:01:13]} 61. Nc3 {[%emt 0:00:00]} h4 {[%emt 0:00:33]} 62. Kh2 Nc2 63. Nxb5 {[%emt 0:00:00]} Nxb4 {[%emt 0:02:12]} 1/2-1/2

[Event "Czech Youth U14 Boys 2024"]
[Site "Kouty nad Desnou"]
[Date "2024.03.16"]
[Round "9.1"]
[White "Soucek, Andrej"]
[Black "Topencik, Bruno"]
[Result "0-1"]
[ECO "D37"]
[WhiteElo "1825"]
[BlackElo "2006"]
[Annotator "NA RC"]
[PlyCount "36"]
[EventDate "2024.03.10"]
[EventType "swiss"]
[EventCountry "CZE"]
[SourceTitle "playchess.com"]
[Source "ChessBase"]
[SourceQuality "1"]
[TimeControl "40/5400+30:1800+30"]

1. d4 {[%emt 0:00:04]} e6 {[%emt 0:00:04]} 2. c4 {[%emt 0:00:10]} Nf6 {[%emt 0:00:14]} 3. Nf3 {[%emt 0:00:18]} d5 {[%emt 0:00:29]} 4. Nc3 {[%emt 0:00:16]} dxc4 {[%emt 0:01:10]} 5. Qa4+ {[%emt 0:04:56]} Nbd7 {[%emt 0:05:40]} 6. Qxc4 {[%emt 0:00:30]} a6 {[%emt 0:02:31]} 7. a4 {[%emt 0:03:47]} c5 {[%emt 0:06:15]} 8. Qd3 {[%emt 0:03:41]} cxd4 {[%emt 0:08:33]} 9. Qxd4 {[%emt 0:05:10]} Bc5 {[%emt 0:01:36]} 10. Qd3 {[%emt 0:01:07]} O-O {[%emt 0:03:48]} 11. Bg5 {[%emt 0:04:50]} Qb6 {[%emt 0:03:29]} 12. e3 {[%emt 0:00:57]} Qxb2 {[%emt 0:01:58]} 13. Rb1 {[%emt 0:04:53]} Qa3 {[%emt 0:00:39]} 14. Nd2 {[%emt 0:12:27]} Bb4 {[%emt 0:08:26]} 15. Rb3 {[%emt 0:08:54]} Qc1+ {[%emt 0:00:58]} 16. Nd1 {[%emt 0:00:17]} Qxd2+ {[%emt 0:00:17]} 17. Qxd2 {[%emt 0:00:05]} Bxd2+ {[%emt 0:00:05]} 18. Kxd2 {[%emt 0:00:02]} Ne4+ {[%emt 0:00:07]} 0-1